[Event "15th Arad Open 2022"]
[Site "Arad"]
[Date "2022.08.12"]
[Round "7.12"]
[White "Ionescu, Irina"]
[Black "Matasaru, Stephanie"]
[Result "1-0"]
[ECO "B51"]
[WhiteElo "2125"]
[BlackElo "1885"]
[Annotator "TA"]
[PlyCount "91"]
[EventDate "2022.08.08"]
[EventType "swiss"]
[EventCountry "ROU"]
[SourceTitle "playchess.com"]
[Source "ChessBase"]
[SourceQuality "1"]
[TimeControl "5400+30"]

{[%evp 14,91,0,13,54,52,48,57,58,58,58,53,60,60,63,49,54,54,64,9,15,-12,0,-16,-18,-18,10,7,7,7,10,15,37,9,12,12,2,0,11,11,101,101,100,95,84,10,86,103,100,113,77,91,54,41,230,224,372,348,336,301,641,641,641,0,0,0,641,627,920,609,2178,2111,2171,1746,5106,2115,29987,29988,29985,5704]} 1. e4 {[%emt 0:00:05]} c5 {[%emt 0:00:04]} 2. Nf3 {[%emt 0:00:11]} d6 {[%emt 0:00:05]} 3. Bb5+ {[%emt 0:00:13]} Nd7 {[%emt 0:00:08]} 4. O-O {[%emt 0:00:11]} a6 {[%emt 0:00:06]} 5. Bxd7+ {[%emt 0:00:19]} Bxd7 {[%emt 0:00:11]} 6. d4 {[%emt 0:00:13]} cxd4 {[%emt 0:01:48]} 7. Qxd4 {[%emt 0:00:06]} Nf6 {[%emt 0:02:12]} 8. Bg5 {[%emt 0:01:39]} e5 {[%emt 0:01:56] B51: Sicilian: Moscow Variation (3 Bb5+) without 3...Bd7.} 9. Qd3 {[%emt 0:04:54]} Bc6 {[%emt 0:03:44]} 10. Nc3 {[%emt 0:08:26]} h6 {[%emt 0:09:50] White is slightly better.} 11. Bxf6 {[%emt 0:01:01]} Qxf6 {[%emt 0:00:25]} 12. Nd5 {[%emt 0:02:45]} Bxd5 {[%emt 0:02:08]} 13. Qxd5 {[%emt 0:00:22]} Rb8 {[%emt 0:00:55]} 14. a4 {[%emt 0:02:37] White is more active.} Be7 {[%emt 0:00:33] [#]} 15. Nd2 $146 {[%emt 0:01:28]} ({Predecessor:} 15. Rfd1 O-O 16. a5 Rfc8 17. Qd3 Rc6 18. Nd2 Rbc8 19. c4 Qe6 20. b3 b6 21. Nf1 {½-½ (33) Frayna,J (2287)-Zhao,S (2155) Chengdu 2017}) 15... O-O {[%emt 0:01:37]} 16. a5 {[%emt 0:02:23]} (16. Nc4) (16. Qd3 $14) 16... Qe6 $11 {[%emt 0:01:56]} 17. c4 {[%emt 0:13:49]} Qxd5 {[%emt 0:03:49]} 18. exd5 {[%emt 0:01:07]} Rfc8 {[%emt 0:06:30]} 19. b3 {[%emt 0:58:11]} b5 {[%emt 0:03:39]} 20. axb6 $1 {[%emt 0:00:00]} Rxb6 {[%emt 0:00:06]} 21. g4 {[%emt 0:00:00]} g6 {[%emt 0:07:00]} 22. Ra3 {[%emt 0:00:00]} f5 {[%emt 0:01:34]} 23. gxf5 {[%emt 0:00:00]} gxf5 {[%emt 0:00:02]} 24. Rfa1 {[%emt 0:00:00]} Ra8 {[%emt 0:00:40]} 25. Kf1 {[%emt 0:00:00][%cal Oc4c5]} Kf7 {[%emt 0:02:05]} 26. c5 {[%emt 0:00:00]} dxc5 {[%emt 0:11:43]} (26... Rb5 $11) 27. Nc4 $36 {[%emt 0:00:00][%csl LRb6,LRe5][%mdl 2048] White is in control.} Rf6 {[%emt 0:03:01]} 28. Nxe5+ {[%emt 0:00:00]} Kg7 {[%emt 0:03:52][%cal Oc5c4]} 29. f4 {[%emt 0:00:00]} ({White should play} 29. Nc4 $16) 29... c4 {[%emt 0:09:05] [#]} (29... Rd8 $1 $11) 30. bxc4 $1 {[%emt 0:00:00][%cal Bb3c4,Bc4c5,Bc5c6,Bc6c7][%mdl 32]} Bxa3 {[%emt 0:00:05]} 31. Rxa3 {[%emt 0:00:00][%mdl 4096] Endgame c5 is the strong threat. KRR-KRN} Rb6 {[%emt 0:01:18]} 32. Rg3+ {[%emt 0:00:00][%mdl 1024] White has strong compensation.} Kh7 {[%emt 0:00:21]} 33. c5 {[%emt 0:00:00]} Rb2 {[%emt 0:05:16]} ({Black should try} 33... Rb5 $14) 34. c6 $18 {[%emt 0:00:00]} a5 {[%emt 0:01:40]} (34... Rc2 {was necessary.} 35. Re3 a5) 35. c7 {[%emt 0:00:00]} a4 {[%emt 0:02:29] [#]} 36. Ra3 $1 {[%emt 0:01:26]} ({Stronger than} 36. Rc3 a3 37. c8=Q Rxc8 38. Rxc8 Rb1+ 39. Kg2 a2 40. Rc7+ Kg8 41. Rc8+ Kg7 42. Rc7+ Kf8 43. Ng6+ Ke8 44. Re7+ Kd8 $15) 36... Rc2 $2 {[%emt 0:06:57]} (36... Rd2 37. Nc4 Rc2) 37. d6 {[%emt 0:02:48]} Kg7 38. Rg3+ {[%emt 0:00:30]} Kh7 $1 {Threatens to win with ...a3.} 39. Ra3 {[%emt 0:00:30]} Kg7 40. Ke1 {[%emt 0:00:30]} Rc5 41. Ke2 {[%emt 0:00:30] Hoping for Nd7.} Rc2+ 42. Kd3 {[%emt 0:00:30]} Rc1 43. Kd4 {[%emt 0:00:30]} Kf6 44. Nc4 {[%emt 0:00:30]} (44. Rg3 $142 Rd1+ 45. Kc5 Rc1+ 46. Kd5 Ra5+ 47. Kd4 Rxe5 48. fxe5+ Ke6 49. Rc3 Rd1+ 50. Ke3) 44... Re8 45. d7 {[%emt 0:00:30]} Re4+ 46. Kd3 {[%emt 0:00:30] Weighted Error Value: White=0.31/Black=0.53} (46. Kd5 $142 Rcxc4 47. d8=Q+ Kf7 48. Qd7+ Kf6 49. Qd6+ Kf7 50. c8=Q Rcd4+ 51. Kc6) 1-0

[Event "15th Arad Open 2022"]
[Site "Arad"]
[Date "2022.08.12"]
[Round "7.13"]
[White "Batagan, Ilinca-Petra"]
[Black "Magold, Victor"]
[Result "1/2-1/2"]
[ECO "E57"]
[WhiteElo "1932"]
[BlackElo "2074"]
[Annotator "TA"]
[PlyCount "110"]
[EventDate "2022.08.08"]
[EventType "swiss"]
[EventCountry "ROU"]
[SourceTitle "playchess.com"]
[Source "ChessBase"]
[SourceQuality "1"]
[TimeControl "5400+30"]

{[%evp 17,110,0,0,0,0,-18,0,-17,0,0,0,0,0,0,0,-3,29,16,26,29,398,401,412,412,412,399,468,471,475,341,331,322,349,335,358,350,389,336,381,285,333,326,481,477,459,375,377,367,362,304,331,329,327,331,332,330,330,323,357,331,331,331,331,331,342,326,410,395,425,412,585,625,599,577,1009,955,921,915,896,762,866,763,757,0,706,714,699,706,712,716,694,683,675,458,368]} 1. e4 {[%emt 0:00:18]} c6 {[%emt 0:00:03][%cal Bc7c6,Bc6d5][%mdl 32]} 2. d4 {[%emt 0:00:40]} d5 {[%emt 0:00:02]} 3. exd5 {[%emt 0:01:01]} cxd5 {[%emt 0:00:03]} 4. c4 {[%emt 0:01:00]} Nf6 {[%emt 0:00:09]} 5. Nc3 {[%emt 0:01:37]} e6 {[%emt 0:01:27]} 6. Nf3 {[%emt 0:02:47]} Nc6 {[%emt 0:04:36]} 7. Bg5 {[%emt 0:02:21]} dxc4 {[%emt 0:12:30]} 8. Bxc4 {[%emt 0:00:52]} Be7 {[%emt 0:00:10]} 9. O-O {[%emt 0:02:35]} O-O {[%emt 0:00:09]} 10. Qd2 {[%emt 0:05:10] E57: Nimzo-Indian: Rubinstein: Main Line: 7...Nc6 8 a3 dxc4 9 Bxc4 cxd4.} b6 {[%emt 0:18:23]} 11. Rfd1 {[%emt 0:11:15]} Bb7 {[%emt 0:01:12] [#]} 12. Ne5 $146 {[%emt 0:01:12][%cal Oc4a6] The position is equal.} ({Predecessor:} 12. Qe2 Nb4 13. Ne5 Nbd5 14. Ba6 Qc8 15. Bxb7 Qxb7 16. Rac1 Rac8 17. Qf3 Rfe8 {0-1 (81) Rezzuti,V (1930)-Zaika,D (2101) Fano 2017}) 12... Nd5 {[%emt 0:14:11]} 13. Nxc6 {[%emt 0:05:42]} Bxc6 {[%emt 0:00:11]} 14. Bxe7 {[%emt 0:00:10]} Nxe7 {[%emt 0:02:09]} 15. d5 {[%emt 0:00:21]} exd5 {[%emt 0:00:21]} 16. Nxd5 {[%emt 0:00:13]} Ng6 {[%emt 0:01:10]} 17. Nb4 {[%emt 0:07:15]} Qxd2 {[%emt 0:10:50]} 18. Rxd2 {[%emt 0:00:12]} Rac8 {[%emt 0:00:09][%mdl 8192] [#] White now steadily converts the win.} (18... Bb7 $11) 19. Ba6 $1 $18 {[%emt 0:10:39]} Be4 {[%emt 0:08:33]} 20. Bxc8 {[%emt 0:00:56]} Rxc8 {[%emt 0:00:07]} 21. Rad1 {[%emt 0:01:49]} Nf8 {[%emt 0:03:52]} 22. Rd8 {[%emt 0:05:35]} Rc7 {[%emt 0:00:16]} 23. Nd5 {[%emt 0:01:57]} Bxd5 {[%emt 0:00:21]} 24. R1xd5 {[%emt 0:00:39][%mdl 4096] Endgame KRR-KRN} ({Much less strong is} 24. R8xd5 g6 25. f3 Kg7 $18) 24... g6 {[%emt 0:00:09]} 25. g3 {[%emt 0:01:57]} Kg7 {[%emt 0:00:03]} 26. Kg2 {[%emt 0:00:58]} Rc2 {[%emt 0:00:34]} 27. Rd2 {[%emt 0:00:11]} Rc5 {[%emt 0:00:18]} 28. a3 {[%emt 0:06:08]} h5 {[%emt 0:00:28]} 29. h4 {[%emt 0:01:27]} a5 {[%emt 0:01:52]} (29... Rc7 $142 30. R8d5 Rc4) 30. R8d5 {[%emt 0:00:30]} Rc7 {[%emt 0:00:13]} 31. Rb5 {[%emt 0:03:24]} Nd7 {[%emt 0:00:22]} 32. Rd6 {[%emt 0:01:29]} Kf8 {[%emt 0:00:19]} 33. Kf3 {[%emt 0:02:27]} Ke7 {[%emt 0:00:29]} 34. Rd2 {[%emt 0:00:18]} Rc6 {[%emt 0:00:37]} 35. Rbd5 {[%emt 0:02:06]} Nf6 {[%emt 0:02:20]} 36. Re5+ {[%emt 0:02:14]} Kf8 {[%emt 0:00:05]} 37. Ree2 {[%emt 0:00:46]} Ng4 {[%emt 0:00:54]} 38. Rc2 {[%emt 0:01:21]} Rd6 {[%emt 0:00:04]} 39. Red2 {[%emt 0:00:53]} Re6 {[%emt 0:00:24]} 40. b4 {[%emt 0:00:00]} axb4 {[%emt 0:00:00]} 41. axb4 {[%emt 0:00:00][%cal Ba3b4,Bb4b5][%mdl 32]} Ne5+ {[%emt 0:00:00]} 42. Kg2 {[%emt 0:00:00]} Nc6 {[%emt 0:00:00]} 43. b5 {[%emt 0:00:00]} Ne7 {[%emt 0:00:00]} (43... Ne5 {is a better defense.} 44. Rc8+ Kg7) 44. Re2 {[%emt 0:00:00]} Rf6 {[%emt 0:00:00]} 45. Re5 {[%emt 0:00:00] [#] Hoping for Rc7.} Nf5 {[%emt 0:00:00]} 46. Rc6 {[%emt 0:00:00]} Kg7 {[%emt 0:00:00]} 47. Rxf6 {[%emt 0:00:00]} Kxf6 {[%emt 0:00:00] KR-KN} 48. Re8 Ne7 {[%emt 0:00:00]} 49. Rb8 Nd5 {[%emt 0:00:00]} 50. Re8 $2 (50. Rb7 $18 Ke6 51. Kf3) 50... Nc7 $2 {[%emt 0:00:00][%mdl 8192]} (50... Ne7 $11 51. f4 Ke6) 51. Rc8 {White is clearly winning.} Nxb5 {[%emt 0:00:00]} 52. Rc6+ Ke5 {[%emt 0:00:00]} 53. Rxb6 Nd4 {[%emt 0:00:00]} 54. Ra6 Ne6 {[%emt 0:00:00]} 55. Kf3 {Ra5+ is the strong threat.} Nd4+ {[%emt 0:00:00][%mdl 32768] Weighted Error Value: White=0.30/Black=0.40. An unexpected result.} 1/2-1/2

[Event "15th Arad Open 2022"]
[Site "Arad"]
[Date "2022.08.12"]
[Round "7.14"]
[White "Pauwels, Xander"]
[Black "Panc, Samuel"]
[Result "1/2-1/2"]
[ECO "A80"]
[WhiteElo "2040"]
[BlackElo "1927"]
[Annotator "TA"]
[PlyCount "78"]
[EventDate "2022.08.08"]
[EventType "swiss"]
[EventCountry "ROU"]
[SourceTitle "playchess.com"]
[Source "ChessBase"]
[SourceQuality "1"]
[TimeControl "5400+30"]

{[%evp 15,78,17,36,35,66,60,60,60,60,61,61,60,60,35,43,39,36,37,69,67,68,68,73,73,80,62,54,51,62,58,92,84,93,100,98,94,93,88,108,61,95,95,101,95,84,66,80,78,96,94,158,36,44,35,74,75,70,68,49,58,93,105,81,43,170]} 1. d4 {[%emt 0:00:04]} f5 {[%emt 0:00:04]} 2. Nc3 {[%emt 0:00:56]} Nf6 {[%emt 0:00:14]} 3. Bg5 {[%emt 0:00:32]} d5 {[%emt 0:00:06]} 4. Bxf6 {[%emt 0:00:47]} exf6 {[%emt 0:00:04]} 5. e3 {[%emt 0:00:12]} c6 {[%emt 0:00:22]} 6. Bd3 {[%emt 0:01:14]} Be6 {[%emt 0:00:57]} 7. Qf3 {[%emt 0:10:03]} g6 {[%emt 0:00:33]} 8. Nge2 {[%emt 0:00:10]} Nd7 {[%emt 0:01:29]} 9. h3 {[%emt 0:02:30] A80: Dutch Defence: Unusual White second moves.} Bb4 {[%emt 0:12:17]} 10. g4 {[%emt 0:04:49]} fxg4 {[%emt 0:00:43]} 11. hxg4 {[%emt 0:00:04] [#] And now Bxg6+ would win.} Bf7 {[%emt 0:01:33]} 12. O-O-O {[%emt 0:03:22]} Qe7 {[%emt 0:03:44]} 13. Rh6 {[%emt 0:06:35]} O-O-O {[%emt 0:00:11] [#]} 14. Rdh1 $146 {[%emt 0:00:13]} ({Predecessor:} 14. Kb1 Nf8 15. e4 Rg8 16. exd5 cxd5 17. a3 Ba5 18. Rhh1 Rg7 19. Bb5 Bg8 20. Ba4 {0-1 (52) Meszaros,G (2345)-Poulsen,M (2252) Paks 2003}) 14... Nf8 {[%emt 0:00:12]} 15. Kb1 {[%emt 0:01:43]} Rg8 {[%emt 0:03:07]} 16. a3 {[%emt 0:09:02]} Bxc3 {[%emt 0:06:46]} 17. Nxc3 {[%emt 0:00:07]} Rg7 {[%emt 0:04:03]} 18. Qg3 {[%emt 0:04:10]} Be6 {[%emt 0:09:59]} 19. Re1 {[%emt 0:03:30] White is much more active.} Qd6 {[%emt 0:03:43]} 20. Qxd6 {[%emt 0:11:17]} Rxd6 {[%emt 0:00:05]} 21. f3 {[%emt 0:00:12][%cal Bf2f3,Bf3f4,Bf4f5][%mdl 32]} Re7 {[%emt 0:02:51]} 22. Kc1 {[%emt 0:05:11]} Bg8 {[%emt 0:06:44]} 23. Kd2 {[%emt 0:02:19]} Kd8 {[%emt 0:02:36]} 24. f4 {[%emt 0:02:38]} Ke8 {[%emt 0:08:54]} 25. f5 {[%emt 0:06:48]} Kf7 {[%emt 0:05:04]} 26. Rh3 {[%emt 0:01:34]} g5 {[%emt 0:02:10]} 27. Ne2 {[%emt 0:05:22]} ({Better is} 27. e4 $16) 27... Kg7 {[%emt 0:00:11]} 28. Ng3 {[%emt 0:00:08]} Bf7 {[%emt 0:00:16]} 29. c3 {[%emt 0:00:19]} Rd8 {[%emt 0:01:52]} 30. Rh2 {[%emt 0:06:33]} Rde8 {[%emt 0:01:16]} 31. Rhe2 {[%emt 0:00:03]} (31. a4 {is interesting.} Nd7 32. a5 b6 33. Reh1) 31... Nd7 {[%emt 0:01:56]} 32. e4 {[%emt 0:03:54]} dxe4 {[%emt 0:00:51]} (32... Kf8 $142) 33. Rxe4 {[%emt 0:00:31]} (33. Nxe4 $16 Nb8 34. Nd6 Rxe2+ 35. Bxe2 (35. Rxe2 Rxe2+ 36. Kxe2 b5 $16)) 33... Rxe4 $14 {[%emt 0:00:19]} 34. Nxe4 {[%emt 0:00:23]} h5 {[%emt 0:06:53]} 35. gxh5 {[%emt 0:00:49]} Bxh5 {[%emt 0:00:05]} 36. Nd6 {[%emt 0:01:38][%csl LRb7,LRe8]} Rxe1 {[%emt 0:00:06]} 37. Kxe1 {[%emt 0:00:02]} b6 {[%emt 0:04:02]} 38. Be4 {[%emt 0:03:21]} c5 {[%emt 0:00:12]} 39. Nc8 {[%emt 0:01:24]} Nb8 {Weighted Error Value: White=0.13 (very precise) /Black=0.13 (very precise)} (39... a6 $14) 1/2-1/2

[Event "15th Arad Open 2022"]
[Site "Arad"]
[Date "2022.08.12"]
[Round "7.15"]
[White "Veneteanu, Mihai"]
[Black "Tablan, Andrei-Damian"]
[Result "1-0"]
[ECO "B12"]
[WhiteElo "2025"]
[BlackElo "1784"]
[Annotator "TA"]
[PlyCount "111"]
[EventDate "2022.08.08"]
[EventType "swiss"]
[EventCountry "ROU"]
[SourceTitle "playchess.com"]
[Source "ChessBase"]
[SourceQuality "1"]
[TimeControl "5400+30"]

{[%evp 10,111,18,18,28,22,33,33,40,35,57,64,63,67,97,64,127,112,128,141,128,125,138,95,95,109,129,122,126,124,115,125,119,128,150,116,133,137,166,160,165,151,158,139,159,153,164,168,170,169,162,170,267,258,262,262,268,267,256,258,253,233,1298,1327,1230,1184,1073,963,6211,6155,5879,6089,6091,5185,29978,29979,29974,29972,29983,29984,29983,29984,29984,29985,29985,29986,29986,29987,29988,29989,29989,29990,29990,29990,29990,29987,29989,29987,29989,29990,29994,29991,29995,29996]} 1. e4 {[%emt 0:00:02]} c6 {[%emt 0:00:33]} 2. d4 {[%emt 0:00:02]} d5 {[%emt 0:00:12]} 3. e5 {[%emt 0:00:01]} Bf5 {[%emt 0:00:35]} 4. Nd2 {[%emt 0:00:02][%cal Bb1d2,Bd2b3,Bb3d4][%mdl 32]} e6 {[%emt 0:01:14]} 5. Nb3 {[%emt 0:00:04]} Nd7 {[%emt 0:00:28]} 6. Nf3 {[%emt 0:00:04]} Ne7 {[%emt 0:01:16] B12: Caro-Kann: Advance Variation.} 7. Be2 {[%emt 0:00:04]} Qc7 {[%emt 0:01:45]} 8. O-O {[%emt 0:00:22]} c5 {[%emt 0:01:15] White is slightly better.} 9. dxc5 {[%emt 0:00:02] [#]} Bg4 $146 {[%emt 0:05:15]} ({Predecessor:} 9... Nc6 10. Nbd4 Nxd4 11. Nxd4 Be4 12. b4 a5 13. c3 Be7 14. f3 Bg6 15. f4 O-O {1-0 (37) Sturt,R (2494)-Kowalski,I (2322) Banja Vrujci 2021}) 10. Nbd4 {[%emt 0:25:28] [#] And now Nb5 would win.} a6 {[%emt 0:05:15] Prevents Nb5.} 11. b4 $1 {[%emt 0:00:17]} Bxf3 {[%emt 0:01:42]} 12. Bxf3 {[%emt 0:00:52]} Nxe5 {[%emt 0:00:39]} (12... Ng6 $14) 13. Bf4 {[%emt 0:00:31]} N7g6 {[%emt 0:01:35]} 14. Bg3 {[%emt 0:00:02]} Nxf3+ {[%emt 0:04:27]} 15. Qxf3 {[%emt 0:00:29]} (15. gxf3 Nf4) (15. gxf3 $6 Nf4 $11) 15... Qd7 {[%emt 0:01:00]} 16. Rad1 {[%emt 0:06:58][%cal Oc2c4]} Be7 {[%emt 0:02:03]} 17. c4 {[%emt 0:00:09]} O-O {[%emt 0:01:23]} 18. cxd5 {[%emt 0:04:18]} Qxd5 {[%emt 0:04:42]} 19. Qxd5 {[%emt 0:00:01]} exd5 {[%emt 0:00:08]} 20. Nf5 {[%emt 0:00:04]} Rfd8 {[%emt 0:12:27]} 21. Rfe1 {[%emt 0:17:15]} Bf6 {[%emt 0:03:37]} 22. Rd3 {[%emt 0:16:36] Prevents Bc3.} ({Don't play} 22. Nd6 Bc3 $16) 22... Rd7 {[%emt 0:03:01]} 23. Bd6 {[%emt 0:28:17]} Rad8 {[%emt 0:07:33]} 24. Kf1 {[%emt 0:00:00]} h6 {[%emt 0:03:52]} 25. g3 {[%emt 0:00:00]} d4 {[%emt 0:01:27]} 26. a3 {[%emt 0:00:00] White is much more active.} Kh7 {[%emt 0:07:00]} 27. f4 {[%emt 0:00:00]} Nf8 {[%emt 0:00:48]} 28. Nxd4 {[%emt 0:00:00]} Bxd4 {[%emt 0:01:10]} 29. Rxd4 {[%emt 0:00:00]} Ne6 {[%emt 0:00:15]} 30. Rde4 {[%emt 0:00:00]} Nc7 {[%emt 0:01:39]} (30... g6 {might work better.} 31. R1e2 b6) 31. Bxc7 $18 {[%emt 0:00:00]} Rxc7 {[%emt 0:00:05][%mdl 4096] Endgame KRR-KRR} 32. Re7 {[%emt 0:00:00]} Rdd7 {[%emt 0:00:06] [#]} 33. Rxd7 {[%emt 0:00:00]} Rxd7 {[%emt 0:00:04] KR-KR} 34. Ke2 {[%emt 0:00:00]} Kg6 {[%emt 0:00:29]} 35. Rd1 {[%emt 0:00:00]} Rxd1 {[%emt 0:03:53]} (35... Re7+ 36. Kf3 Rc7 37. Rd6+ f6) 36. Kxd1 {[%emt 0:00:00] KP-KP} Kf5 {[%emt 0:00:09]} 37. Kc2 {[%emt 0:00:00]} Ke4 {[%emt 0:00:07]} 38. Kc3 {[%emt 0:00:00]} f5 {[%emt 0:00:51]} 39. h4 {[%emt 0:02:04]} Kd5 {[%emt 0:00:51]} 40. Kd3 {[%emt 0:00:00]} h5 {[%emt 0:00:00]} 41. Kc3 {[%emt 0:00:00] a4 is the strong threat.} g6 {[%emt 0:00:00]} 42. Kd3 {[%emt 0:00:00] White mates.} a5 {[%emt 0:00:00]} 43. Kc3 {[%emt 0:00:00]} axb4+ {[%emt 0:00:00]} 44. axb4 {[%emt 0:00:00]} Ke4 {[%emt 0:00:00]} 45. Kc4 {[%emt 0:00:00]} Kf3 {[%emt 0:00:00]} 46. b5 {[%emt 0:00:00]} Kxg3 {[%emt 0:00:00]} 47. c6 {[%emt 0:00:00]} bxc6 {[%emt 0:00:00]} 48. bxc6 {[%emt 0:00:00]} Kxf4 {[%emt 0:00:00] K3P-KPP} 49. c7 {[%emt 0:00:00]} Kg4 {[%emt 0:00:00]} 50. c8=Q {[%emt 0:00:00]} Kxh4 {[%emt 0:00:00]} 51. Kd3 {[%emt 0:00:00]} Kg4 {[%emt 0:00:00]} 52. Ke2 {[%emt 0:00:00]} h4 {[%emt 0:00:00]} 53. Kf2 {[%emt 0:00:00]} g5 {[%emt 0:00:00]} 54. Qc4+ {[%emt 0:00:00]} f4 {[%emt 0:00:00]} 55. Qe6+ {[%emt 0:00:00]} Kh5 {[%emt 0:00:00]} 56. Kf3 {[%emt 0:00:00] Weighted Error Value: White=0.04 (flawless) /Black=0.27 (precise)} 1-0

[Event "15th Arad Open 2022"]
[Site "Arad"]
[Date "2022.08.12"]
[Round "7.16"]
[White "Ciocani, Iosif"]
[Black "Balaban-Voia, Alexandru"]
[Result "1/2-1/2"]
[ECO "B09"]
[WhiteElo "2012"]
[BlackElo "1869"]
[Annotator "TA"]
[PlyCount "70"]
[EventDate "2022.08.08"]
[EventType "swiss"]
[EventCountry "ROU"]
[SourceTitle "playchess.com"]
[Source "ChessBase"]
[SourceQuality "1"]
[TimeControl "5400+30"]

{[%evp 15,70,15,18,12,12,16,37,32,52,0,-2,0,10,-3,8,-26,-36,-36,-35,-32,-31,-28,-20,-35,-15,-19,-4,-8,0,0,0,0,0,-29,0,0,0,0,0,0,0,0,0,0,0,0,0,0,0,0,0,0,0,0,0,0,0]} 1. e4 {[%emt 0:00:03]} g6 {[%emt 0:00:06]} 2. d4 {[%emt 0:00:06]} Bg7 {[%emt 0:00:04]} 3. Nc3 {[%emt 0:00:09]} d6 {[%emt 0:00:05]} 4. f4 {[%emt 0:00:06]} Nf6 {[%emt 0:00:05]} 5. Nf3 {[%emt 0:00:06]} c5 {[%emt 0:00:04]} 6. Bb5+ {[%emt 0:01:21]} Bd7 {[%emt 0:00:09]} 7. e5 {[%emt 0:01:49]} Ng4 {[%emt 0:01:00]} 8. Bxd7+ {[%emt 0:02:41]} Qxd7 {[%emt 0:01:00]} ({Don't play} 8... Nxd7 9. e6 fxe6 10. Ng5 $16) 9. h3 {[%emt 0:01:31] B09: Pirc Defence: Austrian Attack.} cxd4 {[%emt 0:05:16]} 10. Qxd4 {[%emt 0:01:50]} Nh6 {[%emt 0:02:12]} 11. Qf2 $1 {[%emt 0:15:40] White is slightly better. 11.Qf2 is better than 11.g4.} Nc6 {[%emt 0:02:34]} 12. O-O {[%emt 0:02:55]} (12. Bd2 $14) 12... O-O $11 {[%emt 0:04:39] [#]} 13. Rd1 $146 {[%emt 0:02:38]} ({Predecessor:} 13. Re1 Rad8 14. Be3 Nf5 15. Bxa7 Nxa7 16. Qxa7 dxe5 17. fxe5 Qc6 18. Qf2 h5 19. Re4 Rd7 20. Rae1 e6 21. Nd4 {½-½ (21) Mikhalchishin,A (2520)-Van Wely,L (2475) Kecskemet 1991}) 13... Rfd8 {[%emt 0:25:41]} 14. exd6 {[%emt 0:08:19]} Nf5 {[%emt 0:17:16]} 15. Ne4 {[%emt 0:30:55]} Nxd6 {[%emt 0:01:49]} 16. Nxd6 {[%emt 0:00:47][%cal Of3e5]} Qc7 {[%emt 0:07:17][%mdl 64] [#] Pin} 17. Be3 {[%emt 0:01:53] Hoping for Nb5.} Rxd6 {[%emt 0:00:14]} 18. c3 {[%emt 0:00:28]} b6 {[%emt 0:01:45]} 19. Rd2 {[%emt 0:08:27]} Rad8 {[%emt 0:02:01]} 20. Rad1 {[%emt 0:00:33]} Rxd2 {[%emt 0:04:58]} (20... h5 {keeps more tension.} 21. Ng5 Rxd2 22. Rxd2 Qc8) 21. Rxd2 {[%emt 0:00:09]} Rxd2 {[%emt 0:03:57]} 22. Qxd2 {[%emt 0:00:24]} e6 {[%emt 0:01:18]} 23. c4 {[%emt 0:02:01]} e5 {[%emt 0:05:30]} 24. g3 {[%emt 0:04:02]} exf4 {[%emt 0:04:34]} 25. Bxf4 {[%emt 0:00:18] The position is equal.} Ne5 {[%emt 0:00:36]} 26. Nxe5 {[%emt 0:06:24]} Bxe5 {[%emt 0:00:10]} 27. Bxe5 {[%emt 0:00:22]} Qxe5 {[%emt 0:00:05][%mdl 4096] Endgame KQ-KQ} 28. Kh2 {[%emt 0:00:11]} h5 {[%emt 0:00:34]} 29. h4 {[%emt 0:00:11]} Qc5 {[%emt 0:01:25]} 30. b3 {[%emt 0:00:26]} a5 {[%emt 0:01:27]} 31. Kg2 {[%emt 0:00:21]} a4 {[%emt 0:02:15]} 32. bxa4 {[%emt 0:03:43]} Qxc4 {[%emt 0:00:30]} 33. a5 {[%emt 0:00:08]} bxa5 {[%emt 0:00:42]} 34. Qxa5 {[%emt 0:00:07]} Qe2+ {[%emt 0:00:07]} 35. Kg1 {[%emt 0:00:11]} Qe3+ {[%emt 0:00:09] Weighted Error Value: White=0.10 (very precise) /Black=0.06 (flawless)} 1/2-1/2

[Event "15th Arad Open 2022"]
[Site "Arad"]
[Date "2022.08.12"]
[Round "7.17"]
[White "Oltean, Cristian-Daniel"]
[Black "Tudor, Henry Edward"]
[Result "1/2-1/2"]
[ECO "B40"]
[WhiteElo "2158"]
[BlackElo "1984"]
[Annotator "TA"]
[PlyCount "55"]
[EventDate "2022.08.08"]
[EventType "swiss"]
[EventCountry "ROU"]
[SourceTitle "playchess.com"]
[Source "ChessBase"]
[SourceQuality "1"]
[TimeControl "5400+30"]

{[%evp 9,55,6,13,0,4,0,0,0,2,4,8,0,2,0,0,-6,0,-34,-22,-37,-28,-24,-4,-9,0,0,36,32,78,28,96,12,7,0,0,0,0,0,0,0,0,0,0,0,11,19,21,0]} 1. e4 {[%emt 0:00:02]} c5 {[%emt 0:00:30]} 2. Nf3 {[%emt 0:00:13]} e6 {[%emt 0:00:30]} 3. b3 {[%emt 0:00:35]} a6 {[%emt 0:27:58]} 4. Bb2 {[%emt 0:01:56]} d5 {[%emt 0:00:16]} 5. exd5 {[%emt 0:09:49]} exd5 {[%emt 0:01:21]} 6. d4 {[%emt 0:09:26] B40: Sicilian: 2...e6, Unusual lines.} Nf6 {[%emt 0:03:34]} 7. Bd3 {[%emt 0:03:17]} Be7 {[%emt 0:06:25]} 8. O-O {[%emt 0:01:59]} O-O {[%emt 0:01:21]} 9. dxc5 {[%emt 0:09:22]} Bxc5 {[%emt 0:01:57]} 10. Nbd2 {[%emt 0:07:04]} Bg4 {[%emt 0:01:02] [#]} 11. h3 $146 {[%emt 0:02:36]} ({Predecessor:} 11. c3 Nc6 12. Qc2 Qb6 13. a3 Rac8 14. c4 Nd4 15. Nxd4 Bxd4 16. b4 dxc4 17. Nxc4 {0-1 (34) Zaronikas,D (1884)-Grigoriadis,A (2189) Nikaia 2017}) 11... Bh5 {[%emt 0:01:09]} 12. Re1 {[%emt 0:16:48]} Nbd7 {[%emt 0:00:59]} 13. g4 {[%emt 0:15:26]} Bg6 {[%emt 0:02:30]} 14. Bxg6 {[%emt 0:01:57]} hxg6 {[%emt 0:00:20]} 15. Ne5 {[%emt 0:02:33]} Qb6 {[%emt 0:20:43]} 16. Nd3 {[%emt 0:01:46]} Bd6 {[%emt 0:01:08]} 17. Qf3 {[%emt 0:01:26]} Rfd8 {[%emt 0:06:08]} 18. c4 {[%emt 0:05:31]} Qc6 {[%emt 0:07:01]} (18... Qa5 $1 $14 19. Rad1 Re8) 19. Rac1 {[%emt 0:01:25]} (19. g5 $16 Ne4 20. Nxe4 dxe4 21. Qxe4 (21. Rxe4 Nc5 $14)) 19... Bb8 {[%emt 0:06:24]} (19... Rac8 $11) 20. cxd5 {[%emt 0:01:44] White is more active.} ({Better is} 20. c5 $16) 20... Qxd5 $11 {[%emt 0:00:17] The position is equal.} 21. Qxd5 {[%emt 0:00:24]} Nxd5 {[%emt 0:00:00]} 22. Ne4 {[%emt 0:00:57]} Nf4 {[%emt 0:01:51]} 23. Nxf4 {[%emt 0:01:19]} Bxf4 {[%emt 0:00:02]} 24. Rc4 {[%emt 0:01:57]} Ne5 {[%emt 0:01:15]} 25. Bxe5 {[%emt 0:00:28]} Bxe5 {[%emt 0:00:01]} 26. Nc5 {[%emt 0:00:14]} f6 {[%emt 0:00:51]} 27. Nxb7 {[%emt 0:01:32]} Rd2 {[%emt 0:01:09]} 28. a4 {[%emt 0:01:25] Weighted Error Value: White=0.14 (very precise) /Black=0.14 (very precise)} 1/2-1/2